[Event "December 19 Late 2023"]
[Site "https://www.chess.com"]
[Date "2023.12.19"]
[Round "10"]
[White "Devagharan, Devina"]
[Black "Kubatko, Ivan"]
[Result "1/2-1/2"]
[Board "87"]
[TimeControl "180+1"]
[WhiteFideId "2061600"]
[BlackFideId "24111473"]
[WhiteElo "2421"]
[BlackElo "2285"]
[WhiteTeam "USA"]
[BlackTeam "RUS"]
[WhiteClock "0:00:21"]
[BlackClock "0:00:23"]

1. d4 {[%clk 0:03:00]}  d5 {[%clk 0:02:57]} 2. c4 {[%clk 0:02:57]}  e6 {[%clk 0:02:56]} 3. Nc3 {[%clk 0:02:57]}  c5 {[%clk 0:02:56]} 4. cxd5 {[%clk 0:02:51]}  cxd4 {[%clk 0:02:56]} 5. Qxd4 {[%clk 0:02:52]}  Nc6 {[%clk 0:02:55]} 6. Qd1 {[%clk 0:02:52]}  exd5 {[%clk 0:02:55]} 7. e3 {[%clk 0:02:52]}  Nf6 {[%clk 0:02:55]} 8. Nf3 {[%clk 0:02:51]}  Bd6 {[%clk 0:02:55]} 9. Be2 {[%clk 0:02:47]}  O-O {[%clk 0:02:55]} 10. O-O {[%clk 0:02:47]}  a6 {[%clk 0:02:56]} 11. b3 {[%clk 0:02:42]}  Re8 {[%clk 0:02:55]} 12. Bb2 {[%clk 0:02:42]}  Bc7 {[%clk 0:02:55]} 13. Bd3 {[%clk 0:02:10]}  Qd6 {[%clk 0:02:44]} 14. Ne2 {[%clk 0:02:06]}  h5 {[%clk 0:02:04]} 15. Nf4 {[%clk 0:01:51]}  Bg4 {[%clk 0:01:03]} 16. h3 {[%clk 0:01:41]}  Bxf3 {[%clk 0:01:03]} 17. Qxf3 {[%clk 0:01:42]}  Ne5 {[%clk 0:01:03]} 18. Bxe5 {[%clk 0:01:03]}  Qxe5 {[%clk 0:01:04]} 19. g3 {[%clk 0:00:50]}  h4 {[%clk 0:01:04]} 20. Rae1 {[%clk 0:00:46]}  hxg3 {[%clk 0:00:59]} 21. fxg3 {[%clk 0:00:47]}  Bb6 {[%clk 0:00:58]} 22. Ng2 {[%clk 0:00:41]}  Rac8 {[%clk 0:00:51]} 23. Kh2 {[%clk 0:00:33]}  Rc3 {[%clk 0:00:51]} 24. Rd1 {[%clk 0:00:32]}  Bxe3 {[%clk 0:00:44]} 25. Rfe1 {[%clk 0:00:28]}  d4 {[%clk 0:00:40]} 26. Qxb7 {[%clk 0:00:24]}  a5 {[%clk 0:00:30]} 27. Rf1 {[%clk 0:00:22]}  Re7 {[%clk 0:00:22]} 28. Qa8+ {[%clk 0:00:20]}  Re8 {[%clk 0:00:23]} 29. Qb7 {[%clk 0:00:20]}  Re7 {[%clk 0:00:23]} 30. Qa8+ {[%clk 0:00:20]}  Re8 {[%clk 0:00:23]} 31. Qb7 {[%clk 0:00:21]} 1/2-1/2

[Event "December 19 Late 2023"]
[Site "https://www.chess.com"]
[Date "2023.12.19"]
[Round "10"]
[White "Essing, Arnold"]
[Black "Dwilewicz, Katarzyna"]
[Result "1/2-1/2"]
[Board "88"]
[TimeControl "180+1"]
[WhiteFideId "4619862"]
[BlackFideId "1148486"]
[WhiteElo "2257"]
[BlackElo "2098"]
[WhiteTeam "GER"]
[BlackTeam "POL"]
[WhiteClock "0:00:05"]
[BlackClock "0:00:07"]

1. d4 {[%clk 0:03:00]}  g6 {[%clk 0:02:54]} 2. Nf3 {[%clk 0:03:01]}  Bg7 {[%clk 0:02:53]} 3. c4 {[%clk 0:03:01]}  d6 {[%clk 0:02:53]} 4. Nc3 {[%clk 0:03:02]}  Nd7 {[%clk 0:02:54]} 5. e4 {[%clk 0:02:57]}  e5 {[%clk 0:02:54]} 6. Be2 {[%clk 0:02:57]}  Ne7 {[%clk 0:02:53]} 7. O-O {[%clk 0:02:54]}  O-O {[%clk 0:02:53]} 8. Be3 {[%clk 0:02:44]}  f5 {[%clk 0:02:48]} 9. exf5 {[%clk 0:02:44]}  Nxf5 {[%clk 0:02:48]} 10. Bg5 {[%clk 0:02:42]}  Bf6 {[%clk 0:02:45]} 11. Bxf6 {[%clk 0:02:40]}  Qxf6 {[%clk 0:02:42]} 12. Nd5 {[%clk 0:02:39]}  Qd8 {[%clk 0:02:42]} 13. dxe5 {[%clk 0:02:37]}  Nxe5 {[%clk 0:02:41]} 14. Nxe5 {[%clk 0:02:29]}  dxe5 {[%clk 0:02:41]} 15. Bd3 {[%clk 0:01:56]}  Nd4 {[%clk 0:02:37]} 16. f4 {[%clk 0:01:45]}  c6 {[%clk 0:02:28]} 17. Nc3 {[%clk 0:01:45]}  Qb6 {[%clk 0:02:23]} 18. Kh1 {[%clk 0:01:41]}  Qxb2 {[%clk 0:02:22]} 19. Rc1 {[%clk 0:01:36]}  exf4 {[%clk 0:02:15]} 20. Bxg6 {[%clk 0:01:29]}  hxg6 {[%clk 0:02:13]} 21. Qxd4 {[%clk 0:01:29]}  Be6 {[%clk 0:02:11]} 22. Rb1 {[%clk 0:01:24]}  Qc2 {[%clk 0:02:09]} 23. Rxb7 {[%clk 0:01:19]}  Rf7 {[%clk 0:02:05]} 24. Rxf7 {[%clk 0:01:19]}  Bxf7 {[%clk 0:02:06]} 25. Ne4 {[%clk 0:01:16]}  Qxc4 {[%clk 0:02:02]} 26. Nf6+ {[%clk 0:01:11]}  Kh8 {[%clk 0:01:43]} 27. Qa1 {[%clk 0:00:58]}  Kg7 {[%clk 0:01:32]} 28. Ne4+ {[%clk 0:00:48]}  Kh6 {[%clk 0:01:26]} 29. Nd6 {[%clk 0:00:42]}  Qe6 {[%clk 0:01:06]} 30. Qd4 {[%clk 0:00:37]}  g5 {[%clk 0:01:04]} 31. Nxf7+ {[%clk 0:00:23]}  Qxf7 {[%clk 0:01:04]} 32. Rc1 {[%clk 0:00:23]}  Qe6 {[%clk 0:00:55]} 33. h3 {[%clk 0:00:17]}  Kg6 {[%clk 0:00:55]} 34. Qa4 {[%clk 0:00:16]}  Rc8 {[%clk 0:00:46]} 35. Qxa7 {[%clk 0:00:16]}  Qd5 {[%clk 0:00:44]} 36. Qc5 {[%clk 0:00:15]}  Qxa2 {[%clk 0:00:34]} 37. Qd6+ {[%clk 0:00:13]}  Kh5 {[%clk 0:00:30]} 38. Qd7 {[%clk 0:00:12]}  Qg8 {[%clk 0:00:23]} 39. Rxc6 {[%clk 0:00:06]}  Rxc6 {[%clk 0:00:22]} 40. Qxc6 {[%clk 0:00:07]}  Qf7 {[%clk 0:00:16]} 41. Qf3+ {[%clk 0:00:06]}  Kg6 {[%clk 0:00:15]} 42. Qc6+ {[%clk 0:00:04]}  Qf6 {[%clk 0:00:16]} 43. Qc2+ {[%clk 0:00:04]}  Kh6 {[%clk 0:00:16]} 44. Qe2 {[%clk 0:00:03]}  Qc6 {[%clk 0:00:14]} 45. Kg1 {[%clk 0:00:03]}  Qc5+ {[%clk 0:00:14]} 46. Kh2 {[%clk 0:00:02]}  Qd6 {[%clk 0:00:14]} 47. Kg1 {[%clk 0:00:03]}  Qd4+ {[%clk 0:00:14]} 48. Kh2 {[%clk 0:00:03]}  Qf6 {[%clk 0:00:11]} 49. Kg1 {[%clk 0:00:03]}  Qb6+ {[%clk 0:00:11]} 50. Kh2 {[%clk 0:00:03]}  Qf6 {[%clk 0:00:07]} 51. Qe4 {[%clk 0:00:02]}  Kg7 {[%clk 0:00:07]} 52. Kg1 {[%clk 0:00:02]}  Kf7 {[%clk 0:00:07]} 53. Kh2 {[%clk 0:00:03]}  Qe6 {[%clk 0:00:07]} 54. Qxe6+ {[%clk 0:00:02]}  Kxe6 {[%clk 0:00:07]} 55. Kg1 {[%clk 0:00:03]}  Ke5 {[%clk 0:00:07]} 56. Kf2 {[%clk 0:00:03]}  Ke4 {[%clk 0:00:08]} 57. Ke2 {[%clk 0:00:04]}  Ke5 {[%clk 0:00:06]} 58. Kf3 {[%clk 0:00:04]}  Kf5 {[%clk 0:00:07]} 59. g3 {[%clk 0:00:05]}  fxg3 {[%clk 0:00:06]} 60. Kxg3 {[%clk 0:00:05]}  Kg6 {[%clk 0:00:07]} 61. h4 {[%clk 0:00:05]}  Kh6 {[%clk 0:00:07]} 62. hxg5+ {[%clk 0:00:05]}  Kxg5 {[%clk 0:00:07]} 1/2-1/2

[Event "December 19 Late 2023"]
[Site "https://www.chess.com"]
[Date "2023.12.19"]
[Round "10"]
[White "Bogaudinov, Rushan"]
[Black "Jesusesmifuerza"]
[Result "1-0"]
[Board "90"]
[TimeControl "180+1"]
[WhiteFideId "4129288"]
[WhiteElo "1937"]
[BlackElo "2192"]
[WhiteTeam "RUS"]
[WhiteClock "0:01:54"]
[BlackClock "0:01:52"]

1. b3 {[%clk 0:02:23]}  d5 {[%clk 0:02:55]} 2. c3 {[%clk 0:02:23]}  Nf6 {[%clk 0:02:56]} 3. Bb2 {[%clk 0:02:22]}  b6 {[%clk 0:02:53]} 4. h4 {[%clk 0:02:22]}  Bb7 {[%clk 0:02:53]} 5. h5 {[%clk 0:02:22]}  h6 {[%clk 0:02:53]} 6. d4 {[%clk 0:02:22]}  Nbd7 {[%clk 0:02:53]} 7. Nd2 {[%clk 0:02:21]}  e5 {[%clk 0:02:53]} 8. dxe5 {[%clk 0:02:21]}  Nxe5 {[%clk 0:02:53]} 9. Ngf3 {[%clk 0:02:22]}  Bd6 {[%clk 0:02:53]} 10. e3 {[%clk 0:02:22]}  O-O {[%clk 0:02:52]} 11. Be2 {[%clk 0:02:21]}  Re8 {[%clk 0:02:53]} 12. Nxe5 {[%clk 0:02:19]}  Bxe5 {[%clk 0:02:53]} 13. Nf3 {[%clk 0:02:20]}  Bd6 {[%clk 0:02:52]} 14. g4 {[%clk 0:02:17]}  Nxg4 {[%clk 0:02:51]} 15. Rg1 {[%clk 0:02:17]}  Ne5 {[%clk 0:02:51]} 16. Nd4 {[%clk 0:02:10]}  Qd7 {[%clk 0:02:47]} 17. Qc2 {[%clk 0:02:09]}  Bc8 {[%clk 0:02:37]} 18. O-O-O {[%clk 0:02:07]}  c5 {[%clk 0:02:36]} 19. Bb5 {[%clk 0:02:07]}  Qe7 {[%clk 0:02:11]} 20. Bxe8 {[%clk 0:02:06]}  Qxe8 {[%clk 0:02:11]} 21. Nf5 {[%clk 0:02:05]}  Bxf5 {[%clk 0:02:05]} 22. Qxf5 {[%clk 0:02:06]}  Qe6 {[%clk 0:01:59]} 23. Qxe6 {[%clk 0:02:00]}  fxe6 {[%clk 0:02:00]} 24. c4 {[%clk 0:01:58]}  Nf3 {[%clk 0:01:59]} 25. Rg6 {[%clk 0:01:55]}  Nh4 {[%clk 0:01:52]} 26. Rxe6 {[%clk 0:01:54]} 1-0

[Event "December 19 Late 2023"]
[Site "https://www.chess.com"]
[Date "2023.12.19"]
[Round "10"]
[White "Navyblue1"]
[Black "Malek, Omid"]
[Result "0-1"]
[Board "91"]
[TimeControl "180+1"]
[BlackFideId "2605384"]
[WhiteElo "2159"]
[BlackElo "2013"]
[BlackTeam "CAN"]
[WhiteClock "0:00:17"]
[BlackClock "0:00:44"]

1. d4 {[%clk 0:03:00]}  f5 {[%clk 0:02:59]} 2. e4 {[%clk 0:02:59]}  fxe4 {[%clk 0:02:57]} 3. Nc3 {[%clk 0:02:55]}  Nf6 {[%clk 0:02:57]} 4. Bg5 {[%clk 0:02:55]}  g6 {[%clk 0:02:54]} 5. Bxf6 {[%clk 0:02:50]}  exf6 {[%clk 0:02:54]} 6. Nxe4 {[%clk 0:02:50]}  d5 {[%clk 0:02:54]} 7. Ng3 {[%clk 0:02:49]}  Bg7 {[%clk 0:02:54]} 8. Bd3 {[%clk 0:02:40]}  O-O {[%clk 0:02:50]} 9. N1e2 {[%clk 0:02:39]}  f5 {[%clk 0:02:50]} 10. Qd2 {[%clk 0:02:29]}  Nc6 {[%clk 0:02:17]} 11. c3 {[%clk 0:02:19]}  f4 {[%clk 0:02:15]} 12. Nxf4 {[%clk 0:02:13]}  Bh6 {[%clk 0:02:15]} 13. Nge2 {[%clk 0:02:13]}  Bg4 {[%clk 0:02:13]} 14. f3 {[%clk 0:02:12]}  Bf5 {[%clk 0:02:13]} 15. g3 {[%clk 0:02:03]}  Qd6 {[%clk 0:02:10]} 16. Bxf5 {[%clk 0:01:53]}  Rxf5 {[%clk 0:02:10]} 17. Qd3 {[%clk 0:01:53]}  Re8 {[%clk 0:02:06]} 18. O-O {[%clk 0:01:49]}  Ref8 {[%clk 0:01:43]} 19. Ng2 {[%clk 0:01:40]}  Rh5 {[%clk 0:01:31]} 20. Rae1 {[%clk 0:01:22]}  Ne7 {[%clk 0:01:30]} 21. Nef4 {[%clk 0:01:17]}  Bxf4 {[%clk 0:01:28]} 22. Nxf4 {[%clk 0:01:16]}  Rxf4 {[%clk 0:01:28]} 23. gxf4 {[%clk 0:01:16]}  Qxf4 {[%clk 0:01:28]} 24. Rf2 {[%clk 0:01:04]}  Nf5 {[%clk 0:01:24]} 25. Re8+ {[%clk 0:00:56]}  Kg7 {[%clk 0:01:22]} 26. Qe2 {[%clk 0:00:55]}  Nh4 {[%clk 0:01:15]} 27. Qe7+ {[%clk 0:00:51]}  Kh6 {[%clk 0:01:15]} 28. Qe3 {[%clk 0:00:47]}  Rg5+ {[%clk 0:01:14]} 29. Kf1 {[%clk 0:00:44]}  Qf5 {[%clk 0:01:13]} 30. Ke2 {[%clk 0:00:34]}  Kh5 {[%clk 0:00:56]} 31. Re5 {[%clk 0:00:32]}  Qc2+ {[%clk 0:00:54]} 32. Qd2 {[%clk 0:00:32]}  Rxe5+ {[%clk 0:00:51]} 33. dxe5 {[%clk 0:00:30]}  Qf5 {[%clk 0:00:45]} 34. Qd4 {[%clk 0:00:26]}  Qc2+ {[%clk 0:00:45]} 35. Ke3 {[%clk 0:00:20]}  Nf5+ {[%clk 0:00:44]} 36. Kf4 {[%clk 0:00:17]}  g5# {[%clk 0:00:44]} 0-1

[Event "December 19 Late 2023"]
[Site "https://www.chess.com"]
[Date "2023.12.19"]
[Round "10"]
[White "Cardozo Munar, Carlos Eduardo"]
[Black "Seletsky, Grigory"]
[Result "1-0"]
[Board "93"]
[TimeControl "180+1"]
[WhiteFideId "4409477"]
[BlackFideId "14112191"]
[WhiteElo "2067"]
[BlackElo "2482"]
[WhiteTeam "COL"]
[BlackTeam "UKR"]
[WhiteClock "0:00:19"]
[BlackClock "0:00:00"]

1. e4 {[%clk 0:02:53]}  e6 {[%clk 0:02:58]} 2. Nf3 {[%clk 0:02:54]}  d5 {[%clk 0:02:58]} 3. exd5 {[%clk 0:02:51]}  Qxd5 {[%clk 0:02:57]} 4. d4 {[%clk 0:02:52]}  Nf6 {[%clk 0:02:56]} 5. c3 {[%clk 0:02:42]}  Bd6 {[%clk 0:02:51]} 6. g3 {[%clk 0:02:10]}  c5 {[%clk 0:02:42]} 7. Bg2 {[%clk 0:02:09]}  cxd4 {[%clk 0:02:42]} 8. Qxd4 {[%clk 0:02:10]}  Nc6 {[%clk 0:02:39]} 9. Qxd5 {[%clk 0:02:10]}  Nxd5 {[%clk 0:02:39]} 10. O-O {[%clk 0:02:10]}  Bd7 {[%clk 0:02:32]} 11. Nbd2 {[%clk 0:02:10]}  h6 {[%clk 0:02:29]} 12. Nc4 {[%clk 0:02:11]}  Bc7 {[%clk 0:02:28]} 13. Nfe5 {[%clk 0:02:11]}  Nxe5 {[%clk 0:02:25]} 14. Nxe5 {[%clk 0:02:12]}  Bxe5 {[%clk 0:02:25]} 15. Re1 {[%clk 0:02:13]}  Bc6 {[%clk 0:01:53]} 16. Rxe5 {[%clk 0:02:12]}  O-O-O {[%clk 0:01:50]} 17. c4 {[%clk 0:01:55]}  Nb4 {[%clk 0:01:47]} 18. Be3 {[%clk 0:01:27]}  Bxg2 {[%clk 0:01:44]} 19. Kxg2 {[%clk 0:01:28]}  Nc2 {[%clk 0:01:35]} 20. Rc1 {[%clk 0:01:28]}  Nxe3+ {[%clk 0:01:35]} 21. Rxe3 {[%clk 0:01:29]}  Rd2 {[%clk 0:01:34]} 22. Rb3 {[%clk 0:01:19]}  Rhd8 {[%clk 0:01:31]} 23. a4 {[%clk 0:01:18]}  Re2 {[%clk 0:01:28]} 24. c5 {[%clk 0:01:09]}  Rdd2 {[%clk 0:01:24]} 25. Rf3 {[%clk 0:01:09]}  f6 {[%clk 0:01:24]} 26. c6 {[%clk 0:01:10]}  Rxb2 {[%clk 0:01:22]} 27. cxb7+ {[%clk 0:01:10]}  Kxb7 {[%clk 0:01:21]} 28. Rd1 {[%clk 0:01:07]}  Kc6 {[%clk 0:01:14]} 29. Rd8 {[%clk 0:01:06]}  e5 {[%clk 0:01:02]} 30. Rg8 {[%clk 0:01:05]}  e4 {[%clk 0:00:59]} 31. Rf4 {[%clk 0:01:03]}  e3 {[%clk 0:00:55]} 32. Rxg7 {[%clk 0:00:53]}  Rxf2+ {[%clk 0:00:55]} 33. Rxf2 {[%clk 0:00:53]}  Rxf2+ {[%clk 0:00:55]} 34. Kg1 {[%clk 0:00:54]}  Kd5 {[%clk 0:00:47]} 35. Rxa7 {[%clk 0:00:53]}  Ra2 {[%clk 0:00:27]} 36. Kf1 {[%clk 0:00:50]}  Ke4 {[%clk 0:00:26]} 37. Ra6 {[%clk 0:00:45]}  f5 {[%clk 0:00:21]} 38. Ra5 {[%clk 0:00:41]}  Rxh2 {[%clk 0:00:18]} 39. Rb5 {[%clk 0:00:35]}  h5 {[%clk 0:00:16]} 40. a5 {[%clk 0:00:35]}  h4 {[%clk 0:00:07]} 41. gxh4 {[%clk 0:00:33]}  f4 {[%clk 0:00:00]} 42. Rb8 {[%clk 0:00:19]} 1-0

[Event "December 19 Late 2023"]
[Site "https://www.chess.com"]
[Date "2023.12.19"]
[Round "10"]
[White "Su, Dion"]
[Black "Melamed, Daniel"]
[Result "1-0"]
[Board "95"]
[TimeControl "180+1"]
[WhiteFideId "2029731"]
[BlackFideId "3229076"]
[WhiteElo "2364"]
[BlackElo "1908"]
[WhiteTeam "USA"]
[BlackTeam "AUS"]
[WhiteClock "0:00:06"]
[BlackClock "0:00:04"]

1. e4 {[%clk 0:03:00]}  c5 {[%clk 0:02:58]} 2. d4 {[%clk 0:03:00]}  cxd4 {[%clk 0:02:58]} 3. c3 {[%clk 0:03:01]}  g6 {[%clk 0:02:59]} 4. cxd4 {[%clk 0:03:00]}  d5 {[%clk 0:02:59]} 5. exd5 {[%clk 0:03:00]}  Nf6 {[%clk 0:02:59]} 6. Nf3 {[%clk 0:03:00]}  Bg7 {[%clk 0:02:58]} 7. Nc3 {[%clk 0:03:01]}  O-O {[%clk 0:02:58]} 8. Bc4 {[%clk 0:03:00]}  a6 {[%clk 0:02:55]} 9. O-O {[%clk 0:03:00]}  b5 {[%clk 0:02:55]} 10. Bb3 {[%clk 0:03:00]}  Bb7 {[%clk 0:02:49]} 11. Bg5 {[%clk 0:03:00]}  Nbd7 {[%clk 0:02:45]} 12. Re1 {[%clk 0:02:58]}  Nb6 {[%clk 0:02:44]} 13. h3 {[%clk 0:02:47]}  Re8 {[%clk 0:02:43]} 14. Ne5 {[%clk 0:02:39]}  Nbxd5 {[%clk 0:02:40]} 15. Qf3 {[%clk 0:02:28]}  Rb8 {[%clk 0:02:19]} 16. Nxf7 {[%clk 0:01:57]}  Kxf7 {[%clk 0:02:14]} 17. Bxf6 {[%clk 0:01:57]}  Bxf6 {[%clk 0:01:56]} 18. Nxd5 {[%clk 0:01:57]}  Bxd5 {[%clk 0:01:54]} 19. Bxd5+ {[%clk 0:01:54]}  Kg7 {[%clk 0:01:55]} 20. Rad1 {[%clk 0:01:50]}  Rb6 {[%clk 0:01:50]} 21. Bb3 {[%clk 0:01:42]}  Rd6 {[%clk 0:01:49]} 22. d5 {[%clk 0:01:41]}  Bxb2 {[%clk 0:01:46]} 23. h4 {[%clk 0:01:37]}  Bf6 {[%clk 0:01:45]} 24. h5 {[%clk 0:01:37]}  Qb6 {[%clk 0:01:35]} 25. Qf4 {[%clk 0:01:27]}  a5 {[%clk 0:01:28]} 26. h6+ {[%clk 0:01:26]}  Kg8 {[%clk 0:01:26]} 27. Re6 {[%clk 0:01:03]}  Rxe6 {[%clk 0:01:20]} 28. dxe6 {[%clk 0:01:03]}  Rf8 {[%clk 0:01:14]} 29. Qg4 {[%clk 0:00:59]}  a4 {[%clk 0:01:13]} 30. Bc2 {[%clk 0:00:58]}  Be5 {[%clk 0:01:00]} 31. Rd2 {[%clk 0:00:41]}  Bc3 {[%clk 0:00:46]} 32. Re2 {[%clk 0:00:31]}  Bf6 {[%clk 0:00:43]} 33. g3 {[%clk 0:00:19]}  Qd4 {[%clk 0:00:36]} 34. Qxd4 {[%clk 0:00:15]}  Bxd4 {[%clk 0:00:36]} 35. Kg2 {[%clk 0:00:13]}  Rc8 {[%clk 0:00:33]} 36. f4 {[%clk 0:00:10]}  Ra8 {[%clk 0:00:22]} 37. Be4 {[%clk 0:00:08]}  Rb8 {[%clk 0:00:19]} 38. Rd2 {[%clk 0:00:07]}  Bf6 {[%clk 0:00:18]} 39. Rd7 {[%clk 0:00:06]}  b4 {[%clk 0:00:18]} 40. Bc2 {[%clk 0:00:06]}  b3 {[%clk 0:00:18]} 41. axb3 {[%clk 0:00:07]}  axb3 {[%clk 0:00:19]} 42. Bxb3 {[%clk 0:00:08]}  Rc8 {[%clk 0:00:10]} 43. Bd5 {[%clk 0:00:06]}  Rf8 {[%clk 0:00:09]} 44. Kf3 {[%clk 0:00:05]}  Re8 {[%clk 0:00:10]} 45. Ke4 {[%clk 0:00:05]}  Rf8 {[%clk 0:00:10]} 46. g4 {[%clk 0:00:06]}  Re8 {[%clk 0:00:10]} 47. g5 {[%clk 0:00:06]}  Bc3 {[%clk 0:00:09]} 48. Bc6 {[%clk 0:00:06]}  Bb4 {[%clk 0:00:07]} 49. Rd4 {[%clk 0:00:06]}  Rc8 {[%clk 0:00:05]} 50. Rxb4 {[%clk 0:00:06]}  Rxc6 {[%clk 0:00:05]} 51. Rb8+ {[%clk 0:00:06]}  Rc8 {[%clk 0:00:04]} 52. Rxc8# {[%clk 0:00:06]} 1-0

[Event "December 19 Late 2023"]
[Site "https://www.chess.com"]
[Date "2023.12.19"]
[Round "10"]
[White "Fernandez Bustamante, Leancy B."]
[Black "Demina, Marya"]
[Result "1-0"]
[Board "97"]
[TimeControl "180+1"]
[WhiteFideId "3523870"]
[BlackFideId "4195671"]
[WhiteElo "2049"]
[BlackElo "1978"]
[WhiteTeam "CUB"]
[BlackTeam "RUS"]
[WhiteClock "0:00:41"]
[BlackClock "0:00:00"]

1. e4 {[%clk 0:03:00]}  c6 {[%clk 0:02:59]} 2. d4 {[%clk 0:02:59]}  d5 {[%clk 0:03:00]} 3. exd5 {[%clk 0:03:00]}  cxd5 {[%clk 0:02:59]} 4. Bd3 {[%clk 0:03:00]}  Nf6 {[%clk 0:02:59]} 5. h3 {[%clk 0:03:00]}  Nc6 {[%clk 0:02:58]} 6. c3 {[%clk 0:03:00]}  e5 {[%clk 0:02:57]} 7. dxe5 {[%clk 0:03:00]}  Nxe5 {[%clk 0:02:57]} 8. Bb5+ {[%clk 0:03:01]}  Bd7 {[%clk 0:02:56]} 9. Bxd7+ {[%clk 0:03:01]}  Nexd7 {[%clk 0:02:49]} 10. Nf3 {[%clk 0:02:57]}  Bc5 {[%clk 0:02:37]} 11. O-O {[%clk 0:02:56]}  O-O {[%clk 0:02:37]} 12. Bg5 {[%clk 0:02:54]}  Qc7 {[%clk 0:02:35]} 13. Nbd2 {[%clk 0:02:53]}  h6 {[%clk 0:02:30]} 14. Bh4 {[%clk 0:02:52]}  Rfe8 {[%clk 0:02:28]} 15. Bg3 {[%clk 0:02:52]}  Qb6 {[%clk 0:02:28]} 16. Nb3 {[%clk 0:02:48]}  Bf8 {[%clk 0:02:20]} 17. Nfd4 {[%clk 0:02:42]}  g6 {[%clk 0:02:13]} 18. Qf3 {[%clk 0:02:35]}  a5 {[%clk 0:02:05]} 19. a4 {[%clk 0:02:32]}  Ne5 {[%clk 0:01:38]} 20. Bxe5 {[%clk 0:02:29]}  Rxe5 {[%clk 0:01:37]} 21. Rfe1 {[%clk 0:02:26]}  Rae8 {[%clk 0:01:37]} 22. Rxe5 {[%clk 0:02:21]}  Rxe5 {[%clk 0:01:38]} 23. Nb5 {[%clk 0:02:17]}  Rf5 {[%clk 0:01:31]} 24. Qe2 {[%clk 0:02:12]}  Ne4 {[%clk 0:01:30]} 25. Rf1 {[%clk 0:02:10]}  Ng3 {[%clk 0:01:26]} 26. Qd2 {[%clk 0:02:03]}  Nxf1 {[%clk 0:01:26]} 27. Kxf1 {[%clk 0:02:04]}  Bc5 {[%clk 0:00:51]} 28. N3d4 {[%clk 0:02:00]}  Bxd4 {[%clk 0:00:48]} 29. cxd4 {[%clk 0:01:59]}  Qf6 {[%clk 0:00:45]} 30. Nc3 {[%clk 0:01:51]}  Kg7 {[%clk 0:00:38]} 31. f3 {[%clk 0:01:49]}  g5 {[%clk 0:00:34]} 32. Nb5 {[%clk 0:01:49]}  Rf4 {[%clk 0:00:30]} 33. Qxa5 {[%clk 0:01:46]}  Qe7 {[%clk 0:00:21]} 34. Qd2 {[%clk 0:01:36]}  Qe6 {[%clk 0:00:15]} 35. Kg1 {[%clk 0:01:35]}  Qc6 {[%clk 0:00:14]} 36. Nc3 {[%clk 0:01:34]}  Rf6 {[%clk 0:00:13]} 37. b4 {[%clk 0:01:32]}  Re6 {[%clk 0:00:13]} 38. Ne2 {[%clk 0:01:20]}  Qc4 {[%clk 0:00:12]} 39. Nc1 {[%clk 0:01:20]}  Rc6 {[%clk 0:00:10]} 40. Ne2 {[%clk 0:01:18]}  Qc2 {[%clk 0:00:09]} 41. Qe1 {[%clk 0:00:52]}  Qxa4 {[%clk 0:00:09]} 42. Ng3 {[%clk 0:00:51]}  Rf6 {[%clk 0:00:08]} 43. Nh5+ {[%clk 0:00:51]}  Kg6 {[%clk 0:00:07]} 44. Nxf6 {[%clk 0:00:51]}  Kxf6 {[%clk 0:00:08]} 45. Qe5+ {[%clk 0:00:52]}  Kg6 {[%clk 0:00:09]} 46. Qxd5 {[%clk 0:00:52]}  Qxb4 {[%clk 0:00:08]} 47. Qe4+ {[%clk 0:00:52]}  Kg7 {[%clk 0:00:08]} 48. Kh2 {[%clk 0:00:52]}  b5 {[%clk 0:00:08]} 49. h4 {[%clk 0:00:52]}  Qd6+ {[%clk 0:00:08]} 50. g3 {[%clk 0:00:52]}  gxh4 {[%clk 0:00:08]} 51. Qxh4 {[%clk 0:00:52]}  b4 {[%clk 0:00:08]} 52. Qg4+ {[%clk 0:00:50]}  Kf8 {[%clk 0:00:08]} 53. Qc8+ {[%clk 0:00:49]}  Kg7 {[%clk 0:00:08]} 54. Qc4 {[%clk 0:00:46]}  Kg6 {[%clk 0:00:07]} 55. d5 {[%clk 0:00:47]}  Kg7 {[%clk 0:00:07]} 56. Qd4+ {[%clk 0:00:46]}  Kg8 {[%clk 0:00:07]} 57. f4 {[%clk 0:00:46]}  h5 {[%clk 0:00:06]} 58. Qc4 {[%clk 0:00:44]}  Kg7 {[%clk 0:00:05]} 59. Qc6 {[%clk 0:00:42]}  Qg6 {[%clk 0:00:04]} 60. d6 {[%clk 0:00:40]}  Qe6 {[%clk 0:00:04]} 61. Qc5 {[%clk 0:00:38]}  f6 {[%clk 0:00:03]} 62. Qc7+ {[%clk 0:00:37]}  Kg6 {[%clk 0:00:03]} 63. Qc2+ {[%clk 0:00:37]}  Kg7 {[%clk 0:00:03]} 64. Qc7+ {[%clk 0:00:37]}  Kg6 {[%clk 0:00:03]} 65. Qc5 {[%clk 0:00:37]}  b3 {[%clk 0:00:03]} 66. f5+ {[%clk 0:00:38]}  Qxf5 {[%clk 0:00:02]} 67. Qxf5+ {[%clk 0:00:39]}  Kxf5 {[%clk 0:00:03]} 68. d7 {[%clk 0:00:39]}  b2 {[%clk 0:00:03]} 69. d8=Q {[%clk 0:00:39]}  b1=Q {[%clk 0:00:04]} 70. Qd5+ {[%clk 0:00:38]}  Kg6 {[%clk 0:00:04]} 71. Qg8+ {[%clk 0:00:38]}  Kf5 {[%clk 0:00:04]} 72. Qh7+ {[%clk 0:00:38]}  Kg5 {[%clk 0:00:05]} 73. Qxb1 {[%clk 0:00:39]}  f5 {[%clk 0:00:05]} 74. Qc1+ {[%clk 0:00:40]}  Kg6 {[%clk 0:00:00]} 75. Qf4 {[%clk 0:00:41]} 1-0